bitfinex-derivatives/quotes_ETHF0:USTF0_20240927
["timestamp","ask_amount","ask_price","bid_price","bid_amount"]
[1727462387372,3.57905,2692.6,2692.5,0.3677]
[1727462387575,3.57905,2692.6,2692.5,1.7077]
[1727462389275,2.5988,2692.6,2692.5,2.07897]
[1727462389476,0.37123,2692.8,2692.7,0.37123]
[1727462389682,0.37123,2692.8,2692.7,1.71123]
[1727462391381,3.57902,2692.9,2692.8,0.37123]
[1727462392274,0.37122,2692.9,2692.8,4.08483]
[1727462392578,0.37122,2692.9,2692.8,0.3732]
[1727462393383,4.92474,2693.2,2692.8,0.3732]
[1727462393576,0.37119,2693.1,2693.0,0.37119]
[1727462395267,0.3712,2693.0,2692.9,2.09551]
[1727462395472,0.3712,2693.0,2692.9,0.3843]
[1727462395771,0.3712,2693.0,2692.9,0.75551]
[1727462396274,0.928,2693.0,2692.6,0.3792]
[1727462396476,0.928,2693.0,2692.4,3.2078]
[1727462396477,0.37125,2692.6,2692.5,0.76136]
[1727462396974,1.14555,2692.6,2692.5,0.76136]
[1727462397777,1.14555,2692.6,2692.5,2.10136]
[1727462398078,0.74535,2692.6,2692.5,2.10136]
[1727462398473,0.3741,2692.6,2692.5,2.10136]
[1727462398796,0.37125,2692.7,2692.6,0.37125]
[1727462400278,0.37125,2692.7,2692.5,2.1023]
[1727462400279,0.37125,2692.6,2692.5,2.1023]
[1727462400472,0.37125,2692.6,2692.5,0.3901]
[1727462400672,0.37129,2692.3,2692.2,1.35390531]
[1727462400868,0.3843,2692.5,2692.2,0.97320531]
[1727462401174,0.75557,2692.5,2692.4,0.37128]
[1727462401977,0.3843,2692.5,2692.4,1.71128]
[1727462402182,5.18786,2692.9,2692.4,1.34]
[1727462402477,0.74642,2692.9,2692.8,0.37123]
[1727462403682,0.37122,2692.9,2692.8,0.37123]
[1727462404683,0.37123,2692.8,2692.7,0.37123]
[1727462404884,0.37124,2692.7,2692.6,0.37125]
[1727462405282,0.37123,2692.8,2692.7,0.37123]
[1727462405979,0.37122,2692.9,2692.8,0.37123]
[1727462408382,1.30318,2693.1,2692.7,0.97320531]
[1727462408580,0.37122,2692.9,2692.8,0.37122]
[1727462409885,0.37123,2692.8,2692.7,0.37123]
[1727462410189,0.37123,2692.8,2692.7,1.34443531]
[1727462410787,0.37122,2692.9,2692.8,0.37121]
[1727462412775,0.37124,2692.7,2692.6,0.97320531]
[1727462412981,0.37125,2692.6,2692.5,1.34446531]
[1727462413181,0.37125,2692.7,2692.6,0.37125]
[1727462413381,0.37124,2692.8,2692.7,0.37123]
[1727462413804,0.74592,2692.9,2692.8,0.37123]
[1727462413983,0.37124,2692.8,2692.7,0.37123]
[1727462414389,0.37124,2692.7,2692.6,1.13514]
[1727462414586,0.37124,2692.7,2692.6,0.37124]
[1727462416089,0.37124,2692.8,2692.7,0.37123]
[1727462417382,0.37125,2692.6,2692.5,1.34446531]
[1727462417578,0.37125,2692.6,2692.5,2.38647261]
[1727462417782,0.37125,2692.6,2692.5,0.97320531]
[1727462417983,0.37127,2692.5,2692.4,0.97320531]
[1727462418190,0.74717,2692.5,2692.4,2.75776699]
[1727462418391,0.37128,2692.4,2692.3,0.97320531]
[1727462418590,0.74018,2692.4,2692.3,0.97320531]
[1727462419390,0.74018,2692.4,2692.2,1.34450531]
[1727462420287,0.37129,2692.3,2692.1,4.55232531]
[1727462420695,0.74019,2692.4,2692.2,0.37131]
[1727462422597,0.74019,2692.4,2692.3,2.87185696]
[1727462422787,0.74019,2692.4,2692.3,2.87334106]
[1727462423796,0.74019,2692.4,2692.3,3.24463106]
[1727462424199,0.74019,2692.4,2692.3,2.87334106]
[1727462424395,0.74019,2692.4,2692.3,3.24463106]
[1727462425001,0.74019,2692.4,2692.3,1.41289911]
[1727462425394,0.74019,2692.4,2692.3,2.87294377]
[1727462427301,0.74019,2692.4,2692.3,1.41289911]
[1727462428205,1.6684,2692.4,2692.3,0.97326322]
[1727462429205,0.74019,2692.4,2692.3,0.97326322]
[1727462429597,0.37129,2692.3,2692.2,1.7091]
[1727462430198,0.37129,2692.3,2692.2,2.08041]
[1727462431604,0.37129,2692.3,2692.2,1.7091]
[1727462432703,1.29953,2692.3,2692.2,0.3691]
[1727462433307,0.37129,2692.3,2692.2,0.3691]
[1727462434205,0.37129,2692.3,2692.2,0.74041]
[1727462435302,0.37129,2692.3,2692.2,0.3691]
[1727462437601,0.37129,2692.3,2692.1,0.37132]
[1727462437602,0.37131,2692.2,2692.1,0.97326322]
[1727462437804,5.86968,2692.2,2692.0,1.34266322]
[1727462438002,5.86968,2692.2,2691.9,0.97326322]
[1727462438003,1.29969,2692.0,2691.9,0.97326322]
[1727462438312,0.37135,2691.9,2691.8,0.97326322]
[1727462439008,0.37136,2691.8,2691.7,1.34183016]
[1727462439205,0.37136,2691.8,2691.7,2.7528755]
[1727462439405,0.37136,2691.8,2691.7,1.34183016]
[1727462440500,0.37136,2691.8,2691.7,0.3694]
[1727462440704,0.37136,2691.8,2691.7,1.34183016]
[1727462441104,0.3966,2692.0,2691.7,1.71320016]
[1727462441304,1.7209,2692.5,2692.1,0.37132]
[1727462441511,0.37128,2692.5,2692.2,0.7547]
[1727462441705,0.37126,2692.6,2692.3,1.34]
[1727462441909,3.5928,2692.8,2692.4,1.34]
[1727462442107,5.05589,2693.4,2692.4,1.34]
[1727462442108,1.71121,2693.0,2692.5,2.75384995]
[1727462442305,1.71121,2693.0,2692.6,0.97243016]
[1727462442508,1.71121,2693.0,2692.7,0.7735]
[1727462442808,1.34,2692.9,2692.7,0.7735]
[1727462443112,1.34,2692.9,2692.8,0.3785]
[1727462443307,0.37125,2692.7,2692.5,0.97243016]
[1727462443616,1.71125,2692.7,2692.5,1.35093016]
[1727462443819,1.71125,2692.7,2692.5,0.3785]
[1727462444312,0.37125,2692.7,2692.5,0.3785]
[1727462444710,0.37125,2692.6,2692.5,0.3785]
[1727462444911,0.37125,2692.7,2692.5,0.3785]
[1727462445811,0.37125,2692.7,2692.5,1.35093016]
[1727462447710,0.37125,2692.7,2692.5,0.3785]
[1727462448117,0.37125,2692.7,2692.5,1.35093016]
[1727462448914,1.1361,2692.8,2692.5,1.35093016]
[1727462448915,0.37125,2692.6,2692.5,1.35093016]
[1727462449107,1.1361,2692.8,2692.5,1.35093016]
[1727462449512,0.7446,2692.8,2692.5,1.35093016]
[1727462449709,0.3752,2692.8,2692.5,1.35093016]
[1727462450014,0.37124,2692.7,2692.5,1.35093016]
[1727462450711,0.37125,2692.7,2692.5,1.35093016]
[1727462451518,0.37125,2692.6,2692.5,1.35093016]
[1727462451715,0.37125,2692.6,2692.5,0.3785]
[1727462452017,0.37125,2692.6,2692.5,1.35093016]
[1727462452614,0.76515,2692.7,2692.5,0.3785]
[1727462452911,0.37125,2692.6,2692.5,0.3785]
[1727462453214,0.76515,2692.7,2692.5,0.3785]
[1727462453415,0.37125,2692.6,2692.5,0.3785]
[1727462459726,0.37125,2692.6,2692.5,3.25017743]
[1727462460223,0.37125,2692.6,2692.5,3.25015035]
[1727462460721,0.92809,2692.8,2692.5,3.25015035]
[1727462460922,0.37125,2692.7,2692.6,2.77925158]
[1727462461218,1.29936,2692.7,2692.6,2.77925158]
[1727462461427,1.29936,2692.7,2692.6,1.36767445]
[1727462462125,1.29936,2692.7,2692.6,1.80663716]
[1727462462323,1.29936,2692.7,2692.6,3.26668182]
[1727462462521,0.37123,2692.8,2692.6,1.80663716]
[1727462462724,0.37122,2692.9,2692.7,3.24213809]
[1727462462921,0.37122,2692.9,2692.8,1.35356355]
[1727462463119,0.37122,2692.9,2692.8,2.76528116]
[1727462463426,0.37122,2692.9,2692.8,2.76532743]
[1727462463725,0.37122,2692.9,2692.8,2.76523032]
[1727462463925,3.2078,2693.2,2692.8,6.47883032]
[1727462464125,3.2078,2693.2,2693.0,0.97276355]
[1727462464420,3.2078,2693.2,2693.1,0.4046]
[1727462464421,3.57897,2693.2,2693.1,0.4046]
[1727462464624,3.57897,2693.2,2693.1,1.37736355]
[1727462466121,4.5069,2693.2,2693.1,1.37736355]
[1727462466421,4.5069,2693.2,2693.1,0.4046]
[1727462468223,0.3712,2693.0,2692.9,0.3868]
[1727462468425,0.3712,2693.0,2692.7,0.3688]
[1727462468426,0.37123,2692.8,2692.7,0.3688]
[1727462469128,0.3758,2692.9,2692.7,0.3688]
[1727462469314,0.37123,2692.8,2692.7,0.3688]
[1727462470131,1.2993,2692.8,2692.7,0.3688]
[1727462471028,0.37124,2692.7,2692.6,0.4027]
[1727462471621,0.37124,2692.7,2692.6,0.77395]
[1727462472020,0.37123,2692.8,2692.6,0.77395]
[1727462472227,0.37123,2692.8,2692.7,0.37124]
[1727462472533,0.37123,2692.8,2692.6,0.4027]
[1727462473028,0.37123,2692.8,2692.7,0.37124]
[1727462473622,0.37124,2692.7,2692.6,0.4027]
[1727462473838,0.37124,2692.7,2692.6,0.77395]
[1727462474530,1.70474,2692.9,2692.6,0.77395]
[1727462474531,0.37124,2692.8,2692.6,0.77395]
[1727462474726,0.92794,2693.2,2692.9,0.37121]
[1727462474931,3.2078,2693.3,2693.0,0.7792]
[1727462475225,3.2078,2693.3,2693.2,0.37117]
[1727462475416,3.57896,2693.3,2693.2,0.37117]
[1727462476130,3.57896,2693.3,2693.1,0.37118]
[1727462476330,3.2078,2693.3,2693.1,0.37118]
[1727462476631,3.57896,2693.3,2693.1,0.37118]
[1727462477427,0.37118,2693.2,2693.0,1.75196355]
[1727462477825,0.928,2693.0,2692.9,0.97276355]
[1727462478026,0.37121,2692.9,2692.8,1.76056355]
[1727462478727,0.37121,2692.9,2692.8,3.17031492]
[1727462479127,0.37121,2692.9,2692.8,1.7591725]
[1727462479436,0.37121,2692.9,2692.8,3.16892384]
[1727462479624,0.37121,2692.9,2692.8,1.7591725]
[1727462479820,1.29925,2692.9,2692.8,1.3534725]
[1727462480027,0.74941,2692.9,2692.8,1.3534725]
[1727462481635,0.74941,2692.9,2692.8,2.76332828]
[1727462481832,0.74941,2692.9,2692.8,0.3821]
[1727462484827,0.74941,2692.9,2692.6,3.2078]
[1727462484828,0.37124,2692.7,2692.6,3.2078]
[1727462485737,0.37124,2692.7,2692.6,3.57905]
[1727462486138,0.37124,2692.8,2692.7,0.37124]
[1727462486634,0.37124,2692.8,2692.6,3.2078]
[1727462486635,1.30624,2692.9,2692.6,3.57904]
[1727462486938,0.37124,2692.8,2692.7,0.37124]
[1727462489433,0.37124,2692.7,2692.6,3.57904]
[1727462489733,1.30625,2692.9,2692.6,3.57904]
[1727462489734,0.37123,2692.8,2692.7,0.37123]
[1727462489933,0.37123,2692.8,2692.7,1.7833802]
[1727462490133,0.37123,2692.8,2692.7,3.72712639]
[1727462491134,0.37123,2692.8,2692.7,1.7833802]
[1727462492334,0.37119,2693.1,2692.7,12.16202687]
[1727462492537,0.3871,2693.3,2693.2,0.37117]
[1727462492746,3.2078,2693.4,2693.2,3.24296848]
[1727462492940,3.57895,2693.4,2693.3,1.37103083]
[1727462493238,3.57895,2693.4,2693.3,0.97303083]
[1727462493239,5.84681,2693.4,2693.3,0.97303083]
[1727462493641,4.91895,2693.4,2693.3,0.97303083]
[1727462494435,3.57895,2693.4,2693.3,0.97303083]
[1727462496348,3.57894,2693.4,2693.3,2.87160692]
[1727462496938,3.57894,2693.4,2693.3,0.97281099]
[1727462497241,0.37116,2693.3,2693.2,0.97281099]
[1727462497639,4.13566,2693.4,2693.1,2.11589099]
[1727462497844,0.37116,2693.3,2693.2,1.34398099]
[1727462498143,0.37116,2693.3,2693.2,0.97281099]
[1727462499240,0.37116,2693.3,2693.2,1.34398099]
[1727462500035,0.37116,2693.3,2693.2,0.97281099]
[1727462500839,0.37116,2693.3,2693.2,1.34398099]
[1727462501637,0.37117,2693.2,2693.1,2.11589099]
[1727462501843,0.37117,2693.2,2693.1,2.55489123]
[1727462502038,0.37117,2693.3,2693.2,0.37116]
[1727462502240,0.37117,2693.3,2693.2,1.34395019]
[1727462503537,0.37117,2693.3,2693.2,0.97279019]
[1727462503747,0.37117,2693.3,2693.2,1.34396019]
[1727462504446,0.37117,2693.3,2693.2,0.37117]
[1727462504646,0.37117,2693.3,2693.2,1.78317008]
[1727462505049,0.37117,2693.3,2693.2,0.37117]
[1727462506140,4.13568,2693.4,2693.1,0.7719]
[1727462506344,0.37117,2693.3,2693.2,0.37117]
[1727462506647,0.37117,2693.2,2693.1,1.14308]
[1727462506847,0.37117,2693.3,2693.2,0.37117]
[1727462510651,0.37117,2693.2,2693.1,1.14308]
[1727462511752,0.37117,2693.2,2693.1,0.7719]
[1727462512049,4.13567,2693.4,2693.2,0.37117]
[1727462512050,0.37117,2693.3,2693.2,0.37117]
[1727462512250,0.37117,2693.3,2693.2,2.75645898]
[1727462513341,0.37117,2693.3,2693.2,2.87184542]
[1727462513546,0.37117,2693.3,2693.2,1.78338846]
[1727462513741,0.37117,2693.3,2693.2,3.24301542]
[1727462514241,3.2078,2693.7,2693.2,13.62030926]
[1727462514443,3.2078,2693.7,2693.6,4.24403492]
[1727462514636,3.5789,2693.7,2693.6,3.24253207]
[1727462515241,3.2078,2693.7,2693.6,3.24253207]
[1727462515451,3.2078,2693.7,2693.6,2.87141207]
[1727462515752,3.2078,2693.7,2693.6,1.41178511]
[1727462515950,3.5789,2693.7,2693.6,1.41178511]
[1727462516148,4.50666,2693.7,2693.6,0.97246938]
[1727462516345,4.50666,2693.7,2693.5,2.23982696]
[1727462516346,0.37112,2693.6,2693.5,1.75266938]
[1727462517248,0.37112,2693.6,2693.5,2.12379938]
[1727462517449,0.37112,2693.6,2693.5,1.75266938]
[1727462517661,0.37112,2693.6,2693.5,2.12379938]
[1727462518048,0.37112,2693.6,2693.5,1.75266938]
[1727462518751,13.27952,2693.6,2693.5,0.15585938]
[1727462518943,0.37118,2693.1,2693.0,1.85032696]
[1727462519143,2.63915,2693.1,2693.0,0.3907]
[1727462519343,1.71118,2693.1,2693.0,0.3907]
[1727462520047,0.37123,2692.8,2692.7,1.83086696]
[1727462520247,0.37123,2692.8,2692.7,1.77747269]
[1727462520553,0.37123,2692.8,2692.7,1.40623269]
[1727462521055,0.76203,2692.8,2692.7,1.40623269]
[1727462521455,0.37124,2692.7,2692.6,1.85032696]
[1727462521655,0.37124,2692.7,2692.6,3.25655103]
[1727462521854,0.37124,2692.7,2692.6,1.79692407]
[1727462522054,0.76203,2692.8,2692.6,2.16817407]
[1727462522356,0.76203,2692.8,2692.6,0.3907]
[1727462522357,0.37124,2692.7,2692.6,0.3907]
[1727462522654,0.37124,2692.7,2692.6,1.79682814]
[1727462522855,0.76694,2692.7,2692.6,1.79682814]
[1727462523048,0.76694,2692.7,2692.6,0.3907]
[1727462523652,0.37125,2692.6,2692.5,0.366]
[1727462524052,0.76695,2692.7,2692.5,0.73726]
[1727462524771,0.37127,2692.5,2692.4,1.45962696]
[1727462524954,0.37127,2692.5,2692.3,2.56581696]
[1727462525263,3.6035,2692.7,2692.4,0.37128]
[1727462525466,3.97475,2692.7,2692.5,0.37127]
[1727462525669,0.37127,2692.5,2692.3,5.46580696]
[1727462525858,0.37127,2692.5,2692.3,4.00618]
[1727462526059,0.37127,2692.5,2692.4,0.37128]
[1727462526260,0.37126,2692.6,2692.4,0.37128]
[1727462526868,0.37126,2692.6,2692.5,0.37127]
[1727462529270,3.6035,2692.7,2692.3,3.6349]
[1727462529271,3.6035,2692.7,2692.4,0.37127]
[1727462529464,0.37126,2692.6,2692.5,0.37127]
[1727462529665,3.6035,2692.7,2692.5,0.37127]
[1727462529869,0.3957,2692.7,2692.5,0.37127]
[1727462531459,0.37125,2692.6,2692.5,0.37127]
[1727462532062,0.3957,2692.7,2692.3,3.6349]
[1727462532063,0.37127,2692.5,2692.3,3.6349]
[1727462532266,0.37126,2692.6,2692.4,0.37128]
[1727462533177,0.37126,2692.6,2692.5,0.37127]
[1727462534686,0.37126,2692.6,2692.4,0.37127]
[1727462535082,0.37126,2692.6,2692.4,1.83089696]
[1727462535284,0.37126,2692.6,2692.5,0.37127]
[1727462536987,0.37126,2692.6,2692.4,0.37127]
[1727462537184,0.37126,2692.6,2692.5,0.37127]
[1727462538385,1.32381,2692.7,2692.4,1.83089696]
[1727462538590,0.37127,2692.6,2692.4,0.37127]
[1727462538897,0.37127,2692.5,2692.4,0.37127]
[1727462539095,1.32381,2692.7,2692.5,0.37127]
[1727462539096,0.37126,2692.6,2692.5,0.37127]
[1727462539999,1.32382,2692.7,2692.3,8.30232696]
[1727462540194,1.32382,2692.7,2692.3,0.3658]
[1727462540195,0.37128,2692.4,2692.3,0.3658]
[1727462540398,0.37127,2692.5,2692.3,0.73708]
[1727462540591,2.26814,2692.6,2692.3,0.73708]
[1727462540793,0.37128,2692.5,2692.3,2.07708]
[1727462540994,0.37128,2692.5,2692.4,0.37128]
[1727462541194,0.37128,2692.4,2692.3,1.7058]
[1727462541500,0.37128,2692.5,2692.3,2.07708]
[1727462542200,0.37128,2692.5,2692.4,0.37128]
[1727462542398,0.76695,2692.7,2692.5,0.37126]
[1727462542607,0.76695,2692.7,2692.5,1.71126]
[1727462543194,3.2078,2692.9,2692.6,1.34]
[1727462543501,3.2078,2692.9,2692.8,1.71123]
[1727462544704,0.37123,2692.8,2692.7,0.374]
[1727462545111,3.2078,2692.9,2692.7,0.74523]
[1727462545308,3.57902,2692.9,2692.7,0.74523]
[1727462545604,0.37122,2692.9,2692.7,0.74523]
[1727462545899,0.37121,2693.0,2692.8,0.37123]
[1727462546205,0.74638,2693.2,2692.9,0.37121]
[1727462546390,5.05588,2693.4,2693.2,0.37117]
[1727462546391,0.37115,2693.4,2693.2,0.37117]
[1727462546595,0.37115,2693.4,2693.3,0.4058]
[1727462546799,1.71115,2693.4,2693.3,0.4058]
[1727462547103,3.2078,2693.5,2693.0,2.11609]
[1727462547408,4.5478,2693.5,2693.1,0.4058]
[1727462548307,0.37117,2693.2,2693.1,0.4058]
[1727462549004,0.37116,2693.3,2693.1,0.77698]
[1727462549206,0.37115,2693.4,2693.2,0.37117]
[1727462549398,0.37116,2693.3,2693.2,0.37117]
[1727462549600,0.37116,2693.3,2693.1,0.77697]
[1727462550104,0.37117,2693.2,2693.1,0.77697]
[1727462550299,0.37116,2693.3,2693.2,0.37117]
[1727462550897,4.5478,2693.5,2693.2,0.37117]
[1727462550898,0.37115,2693.4,2693.2,0.37117]
[1727462551099,4.5478,2693.5,2693.4,0.37114]
[1727462551100,3.2078,2693.5,2693.4,0.37114]
[1727462551303,3.57888,2693.9,2693.7,0.3711]
[1727462551503,3.57888,2693.9,2693.8,0.3712]
[1727462552601,4.91888,2693.9,2693.8,0.3712]
[1727462554002,0.37114,2693.4,2693.2,1.45962696]
[1727462554305,0.37116,2693.3,2693.1,2.20929696]
[1727462554505,0.37115,2693.4,2693.2,0.37117]
[1727462555706,0.37116,2693.3,2693.1,0.74968]
[1727462556610,0.37116,2693.3,2693.1,3.5863]
[1727462556800,0.37116,2693.3,2693.1,0.74968]
[1727462557002,4.13561,2693.6,2693.2,0.37116]
[1727462557003,0.37115,2693.4,2693.2,0.37116]
[1727462557903,0.37115,2693.4,2693.3,0.37116]
[1727462558410,0.92783,2693.5,2693.1,0.74968]
[1727462558704,0.37117,2693.2,2693.1,0.3785]
[1727462558906,0.37116,2693.3,2693.2,0.37117]
[1727462560305,0.37115,2693.4,2693.2,0.37117]
[1727462561508,0.37116,2693.3,2693.2,0.37117]
[1727462563417,0.37112,2693.6,2693.5,0.37112]
[1727462563614,0.7868,2693.7,2693.3,3.2078]
[1727462563915,0.7868,2693.7,2693.6,0.37111]
[1727462563916,0.37111,2693.7,2693.6,0.37111]
[1727462564110,0.3711,2693.7,2693.6,0.37111]
[1727462565410,3.9866,2693.9,2693.6,0.37111]
[1727462565411,0.3711,2693.8,2693.6,0.37111]
[1727462565711,0.37109,2693.8,2693.5,0.3805]
[1727462565916,0.37109,2693.8,2693.7,0.3711]
[1727462566304,3.2078,2693.9,2693.8,0.37109]
[1727462567214,3.2078,2693.9,2693.5,1.68103]
[1727462567215,0.7591,2694.1,2693.9,0.37107]
[1727462567416,4.51431,2694.2,2693.8,0.37108]
[1727462567719,0.37107,2694.0,2693.9,0.3854]
[1727462568512,0.37105,2694.1,2693.9,0.75647]
[1727462568713,0.37106,2694.0,2693.9,0.3854]
[1727462570912,0.37112,2693.6,2693.5,0.3805]
[1727462571807,0.37113,2693.5,2693.4,0.3857]
[1727462572013,0.37112,2693.6,2693.4,0.3857]
[1727462572212,0.37113,2693.5,2693.4,0.3857]
[1727462572616,0.37113,2693.5,2693.4,0.75683]
[1727462572914,0.76229,2693.8,2693.4,6.9985]
[1727462573114,3.2078,2693.9,2693.6,2.9]
[1727462573412,3.2078,2693.9,2693.8,0.37109]
[1727462573807,3.2078,2693.9,2693.8,0.76149]
[1727462574004,0.37105,2694.1,2693.9,0.37107]
[1727462575410,4.0032,2694.3,2693.9,0.37107]
[1727462575616,0.37106,2694.1,2693.8,0.76148]
[1727462576610,4.0032,2694.3,2693.8,0.3904]
[1727462576813,3.57878,2694.6,2694.3,0.37101]
[1727462577119,0.3904,2694.8,2694.5,2.9]
[1727462577313,0.37097,2694.7,2694.5,2.9]
[1727462577517,0.37098,2694.6,2694.5,2.9]
[1727462577715,0.3904,2694.8,2694.5,2.9]
[1727462577912,0.37098,2694.6,2694.5,2.9]
[1727462578115,0.3904,2694.8,2694.4,0.3677]
[1727462578116,0.37099,2694.5,2694.4,0.3677]
[1727462578319,0.37101,2694.4,2694.2,3.2078]
[1727462579011,0.37102,2694.3,2694.2,3.2078]
[1727462579407,0.4016,2694.4,2694.2,3.2078]
[1727462579607,0.77261,2694.4,2694.2,3.2078]
[1727462579809,3.6094,2694.4,2693.9,3.6604]
[1727462580015,0.37106,2694.1,2693.9,3.6604]
[1727462580216,0.37106,2694.0,2693.9,3.2677]
[1727462580722,0.37105,2694.1,2693.9,3.2677]
[1727462581015,0.77046,2694.0,2693.9,3.2677]
[1727462581218,0.3994,2694.0,2693.9,3.2677]
[1727462581611,0.77046,2694.0,2693.9,3.2677]
[1727462581824,1.15796,2694.0,2693.7,3.5789]
[1727462582814,1.15796,2694.0,2693.5,0.3866]
[1727462582815,3.2078,2693.9,2693.5,0.3866]
[1727462583120,0.37111,2693.7,2693.5,0.3866]
[1727462583625,0.37109,2693.8,2693.5,3.65773]
[1727462583825,0.369,2693.9,2693.7,2.9]
[1727462583826,0.74008,2693.9,2693.7,2.9]
[1727462584120,0.7869,2694.0,2693.7,3.2711]
[1727462584121,1.15797,2694.0,2693.7,3.2711]
[1727462584309,0.3875,2694.0,2693.9,2.9]
[1727462584518,0.3875,2694.0,2693.8,0.37108]
[1727462584819,0.37103,2694.3,2694.0,0.37106]
[1727462585023,0.37103,2694.3,2694.1,0.799]
[1727462585317,0.75041,2694.4,2694.1,1.17005]
[1727462585520,1.1524,2694.5,2694.1,0.799]
[1727462585722,0.37101,2694.4,2694.2,0.37103]
[1727462585921,0.7737,2694.5,2694.1,0.799]
[1727462586217,0.4027,2694.5,2694.1,0.799]
[1727462586411,0.77374,2694.5,2694.2,0.37106]
[1727462586614,0.77374,2694.5,2694.1,0.799]
[1727462586815,0.77374,2694.5,2694.3,0.37106]
[1727462587011,0.77182,2694.6,2694.4,0.37103]
[1727462587212,0.77182,2694.6,2694.5,0.3895]
[1727462587410,0.37105,2694.4,2694.2,0.37106]
[1727462587615,0.37104,2694.5,2694.3,0.37106]
[1727462589116,0.37103,2694.5,2694.4,0.37104]
[1727462589518,0.77182,2694.6,2694.4,0.37104]
[1727462589720,0.37099,2694.8,2694.6,0.371]
[1727462589921,0.37099,2694.8,2694.7,0.7564]
[1727462590323,0.37099,2694.8,2694.7,0.3854]
[1727462591220,0.37099,2694.8,2694.4,0.37104]
[1727462591221,0.92748,2694.8,2694.4,0.37104]
[1727462591428,4.13533,2694.7,2694.3,0.3854]
[1727462591629,0.37104,2694.4,2694.3,0.3854]
[1727462593017,1.69445,2694.4,2694.3,0.3854]
[1727462593214,0.37107,2694.2,2694.1,0.7923]
[1727462593416,0.37107,2694.2,2694.1,0.3876]
[1727462594519,0.37107,2694.2,2694.1,0.75868]
[1727462595026,4.63968,2694.2,2693.5,4.66742696]
[1727462595325,0.3711,2694.0,2693.6,0.3794]
[1727462595527,0.37114,2693.7,2693.6,0.75054]
[1727462597319,0.37113,2693.8,2693.7,0.37114]
[1727462597519,0.37114,2693.7,2693.6,0.75054]
[1727462597720,0.37113,2693.8,2693.7,0.37114]
[1727462601222,0.37114,2693.7,2693.6,0.3794]
[1727462601429,0.37115,2693.6,2693.5,0.37116]
[1727462601625,0.37117,2693.5,2693.4,0.75407]
[1727462601827,0.37118,2693.4,2693.3,0.74969]
[1727462602326,0.37118,2693.5,2693.4,0.37117]
[1727462602529,0.56532318,2693.6,2693.5,0.37117]
[1727462602726,1.15795,2693.7,2693.6,0.37115]
[1727462603236,1.15795,2693.7,2693.5,0.37116]
[1727462603237,0.37116,2693.6,2693.5,0.37116]
[1727462604529,0.37116,2693.6,2693.5,1.76904349]
[1727462605132,0.37116,2693.6,2693.5,1.7690452]
[1727462606028,0.37115,2693.6,2693.5,1.7690452]
[1727462606225,0.7868,2693.7,2693.6,0.37115]
[1727462606426,0.37113,2693.8,2693.7,0.37113]
[1727462606732,0.37112,2693.9,2693.8,0.37111]
[1727462607223,0.37112,2693.8,2693.7,0.76393]
[1727462607829,0.37112,2693.8,2693.7,0.3928]
[1727462608130,0.37112,2693.8,2693.7,0.76394]
[1727462609333,0.37115,2693.6,2693.5,1.83078696]
[1727462609531,0.37115,2693.6,2693.5,3.23009824]
[1727462609728,0.37115,2693.6,2693.5,3.60126824]
[1727462610137,0.37115,2693.6,2693.5,3.60127149]
[1727462612432,0.77505,2693.6,2693.5,3.60127149]
[1727462612831,0.77505,2693.6,2693.3,1.45962696]
[1727462612832,1.29914,2693.4,2693.3,1.45962696]
[1727462613032,0.37119,2693.3,2693.2,2.22202696]
[1727462613235,0.37119,2693.3,2693.2,2.15750884]
[1727462613741,0.37119,2693.3,2693.2,2.15737776]
[1727462614825,0.37119,2693.4,2693.3,0.37118]
[1727462618035,0.37119,2693.3,2693.2,0.3912]
[1727462618640,0.37119,2693.3,2693.2,0.76241]
[1727462619140,0.37119,2693.3,2693.2,0.3912]
[1727462619337,0.37119,2693.3,2693.2,0.76241]
[1727462623035,1.29918,2693.3,2693.2,0.3912]
[1727462623234,0.37119,2693.3,2693.2,0.76241]
[1727462623437,0.37119,2693.3,2692.5,1.54562696]
[1727462623438,0.37127,2692.8,2692.5,1.54562696]
[1727462623644,0.37128,2692.7,2692.6,0.3727]
[1727462623841,1.17148,2692.7,2692.6,0.74399]
[1727462624246,4.37928,2692.7,2692.6,0.74399]
[1727462624644,1.17148,2692.7,2692.6,0.74399]
[1727462628146,1.17148,2692.7,2692.6,0.3727]
[1727462628536,1.17148,2692.7,2692.6,0.74399]
[1727462628844,1.17148,2692.7,2692.6,0.3727]
[1727462631037,1.17148,2692.7,2692.6,0.74399]
[1727462631239,0.76808,2692.7,2692.6,0.74399]
[1727462631642,0.76808,2692.7,2692.6,0.3727]
[1727462632941,0.3968,2692.7,2692.6,0.74399]
[1727462633942,0.76808,2692.7,2692.6,0.74399]
[1727462635444,0.76808,2692.7,2692.6,0.3727]
[1727462635746,0.76808,2692.7,2692.6,0.74399]
[1727462635956,0.76808,2692.7,2692.6,0.3727]
[1727462636651,0.37129,2692.6,2692.5,0.3772]
[1727462637050,0.37129,2692.6,2692.5,0.7457]
[1727462638452,0.37129,2692.6,2692.5,1.11699]
[1727462638853,0.37129,2692.7,2692.6,0.37128]
[1727462639955,0.37129,2692.6,2692.5,1.11699]
[1727462640346,0.37129,2692.7,2692.6,0.37128]
[1727462643752,0.37129,2692.6,2692.5,1.11699]
[1727462643949,4.19437,2692.8,2692.5,0.7457]
[1727462644156,0.37128,2692.7,2692.6,0.37129]
[1727462645959,0.37129,2692.6,2692.5,1.11699]
[1727462646155,0.37129,2692.7,2692.6,0.37128]
[1727462647059,0.37127,2692.8,2692.7,0.37128]
[1727462653764,0.37128,2692.7,2692.6,0.37128]